bitfinex/quotes_BTCUSD_20241226
["timestamp","ask_amount","ask_price","bid_price","bid_amount"]
[1735199071857,8.57e-05,97961.0,97954.0,0.18435772]
[1735199072068,8.57e-05,97961.0,97955.0,0.43066632]
[1735199072270,8.57e-05,97961.0,97960.0,0.163331]
[1735199073791,8.57e-05,97961.0,97960.0,0.26731732]
[1735199075244,8.57e-05,97961.0,97960.0,0.34851732]
[1735199076077,8.57e-05,97961.0,97960.0,0.34751732]
[1735199076287,8.57e-05,97961.0,97960.0,0.34951732]
[1735199076486,8.57e-05,97961.0,97960.0,0.35351732]
[1735199077116,8.57e-05,97961.0,97960.0,0.27131732]
[1735199077321,8.57e-05,97961.0,97960.0,0.27331732]
[1735199077523,8.57e-05,97961.0,97960.0,0.169331]
[1735199078294,8.57e-05,97961.0,97960.0,0.165331]
[1735199078494,8.57e-05,97961.0,97960.0,0.169331]
[1735199078727,8.57e-05,97961.0,97960.0,0.165331]
[1735199078893,8.57e-05,97961.0,97960.0,0.163331]
[1735199079078,8.57e-05,97961.0,97960.0,0.166331]
[1735199079279,8.57e-05,97961.0,97960.0,0.168331]
[1735199079699,8.57e-05,97961.0,97960.0,0.163331]
[1735199079896,8.57e-05,97961.0,97960.0,0.164331]
[1735199080102,8.57e-05,97961.0,97960.0,0.166331]
[1735199080609,8.57e-05,97961.0,97960.0,0.165331]
[1735199080835,8.57e-05,97961.0,97960.0,0.166331]
[1735199082066,8.57e-05,97961.0,97960.0,0.163331]
[1735199082289,8.57e-05,97961.0,97960.0,0.164331]
[1735199082491,8.57e-05,97961.0,97960.0,0.166331]
[1735199082670,8.57e-05,97961.0,97960.0,0.164331]
[1735199082877,8.57e-05,97961.0,97960.0,0.163331]
[1735199083529,8.57e-05,97961.0,97960.0,0.164331]
[1735199084065,8.57e-05,97961.0,97960.0,0.163331]
[1735199084222,8.57e-05,97961.0,97960.0,0.164331]
[1735199086189,8.57e-05,97961.0,97960.0,0.26831732]
[1735199092438,8.57e-05,97961.0,97960.0,0.26848872]
[1735199095869,8.57e-05,97961.0,97960.0,0.39398872]
[1735199097143,8.57e-05,97961.0,97960.0,0.39298872]
[1735199097284,8.57e-05,97961.0,97960.0,0.39898872]
[1735199097482,8.57e-05,97961.0,97960.0,0.40198872]
[1735199100353,2.2e-07,97964.0,97963.0,0.163326]
[1735199100552,2.2e-07,97964.0,97963.0,0.26731232]
[1735199100784,2.2e-07,97964.0,97963.0,0.34841232]
[1735199101525,2.2e-07,97964.0,97963.0,0.35241232]
[1735199101968,2.2e-07,97964.0,97963.0,0.34841232]
[1735199102163,2.2e-07,97964.0,97963.0,0.35241232]
[1735199102386,2.2e-07,97964.0,97963.0,0.36141232]
[1735199105255,2.2e-07,97964.0,97963.0,0.29027328]
[1735199105462,0.08150022,97964.0,97963.0,0.28031232]
[1735199105881,0.17828845,97964.0,97963.0,0.176326]
[1735199106122,0.17828845,97964.0,97963.0,0.167326]
[1735199106529,0.32728845,97964.0,97963.0,0.172326]
[1735199106749,0.32728845,97964.0,97963.0,0.163326]
[1735199106948,0.32728845,97964.0,97963.0,0.004]
[1735199107158,0.32728845,97964.0,97963.0,0.171326]
[1735199107377,0.32728845,97964.0,97963.0,0.004]
[1735199107788,0.32728845,97964.0,97963.0,0.005]
[1735199108209,0.32728845,97964.0,97963.0,0.004]
[1735199108410,0.32728845,97964.0,97960.0,0.0001714]
[1735199108640,0.1,97961.0,97960.0,0.0001714]
[1735199109263,0.34682823,97961.0,97960.0,0.0001714]
[1735199109470,0.42832823,97961.0,97960.0,0.0001714]
[1735199109854,0.42832823,97961.0,97960.0,0.0021714]
[1735199110266,0.47732823,97961.0,97960.0,0.0021714]
[1735199111086,0.48032823,97961.0,97960.0,0.0021714]
[1735199111447,0.48032823,97961.0,97960.0,0.0001714]
[1735199111653,0.48132823,97961.0,97960.0,0.0001714]
[1735199114933,0.64465823,97961.0,97960.0,0.0001714]
[1735199115103,0.74864455,97961.0,97960.0,0.0001714]
[1735199116168,0.51016823,97955.0,97954.0,0.0001714]
[1735199116353,0.74115455,97955.0,97954.0,0.0001714]
[1735199116576,0.09682823,97955.0,97954.0,0.0001714]
[1735199116714,0.09810446,97955.0,97954.0,0.0001714]
[1735199116910,0.09810446,97955.0,97954.0,0.1635124]
[1735199117120,0.09682823,97955.0,97954.0,0.1635124]
[1735199117365,0.09782823,97955.0,97954.0,0.1635124]
[1735199117755,0.09682823,97955.0,97954.0,0.1635124]
[1735199117955,0.19682823,97955.0,97954.0,0.1635124]
[1735199118159,0.34682823,97955.0,97954.0,0.1635124]
[1735199118317,0.34882823,97955.0,97954.0,0.1635124]
[1735199118513,0.34682823,97955.0,97954.0,0.0001714]
[1735199118817,0.42782823,97955.0,97954.0,0.0001714]
[1735199119014,0.47582823,97955.0,97954.0,0.0001714]
[1735199119218,0.47382823,97955.0,97954.0,0.0001714]
[1735199119595,0.47482823,97955.0,97954.0,0.0001714]
[1735199120410,0.47682823,97955.0,97954.0,0.0001714]
[1735199120614,0.58081455,97955.0,97954.0,0.0001714]
[1735199121218,0.57981455,97955.0,97954.0,0.0001714]
[1735199121752,0.58381455,97955.0,97954.0,0.0001714]
[1735199122727,0.59397913,97955.0,97954.0,0.0001714]
[1735199123119,0.69397913,97955.0,97954.0,0.0001714]
[1735199123739,0.19682823,97937.0,97936.0,0.0001714]
[1735199123935,0.32382823,97937.0,97936.0,0.0001714]
[1735199125083,0.47382823,97937.0,97936.0,0.0001714]
[1735199125298,0.47582823,97937.0,97936.0,0.0001714]
[1735199126451,0.47582823,97937.0,97936.0,0.0011714]
[1735199126653,0.57981455,97937.0,97936.0,0.0011714]
[1735199126806,0.57981455,97937.0,97936.0,0.0001714]
[1735199127011,0.58986316,97937.0,97936.0,0.0001714]
[1735199127220,0.59086316,97937.0,97936.0,0.0001714]
[1735199128301,0.48986316,97937.0,97936.0,0.0001714]
[1735199128519,0.58786316,97937.0,97936.0,0.0001714]
[1735199128721,0.59186316,97937.0,97936.0,0.0001714]
[1735199129795,0.59386316,97937.0,97936.0,0.0001714]
[1735199138595,0.10282823,97937.0,97936.0,0.0001714]
[1735199138800,0.20282823,97937.0,97936.0,0.0001714]
[1735199139405,0.20082823,97937.0,97936.0,0.0001714]
[1735199139544,0.20182823,97937.0,97936.0,0.0001714]
[1735199140194,0.20082823,97937.0,97936.0,0.0001714]
[1735199140919,0.20282823,97937.0,97936.0,0.0001714]
[1735199141120,0.19882823,97937.0,97936.0,0.0001714]
[1735199142063,0.20282823,97937.0,97936.0,0.0001714]
[1735199142263,0.20082823,97937.0,97936.0,0.0001714]
[1735199142605,0.20282823,97937.0,97936.0,0.0001714]
[1735199145766,0.58211455,97937.0,97936.0,0.0001714]
[1735199145971,0.74548455,97937.0,97936.0,0.0001714]
[1735199147534,0.20282823,97937.0,97936.0,0.0001714]
[1735199147747,0.10282823,97937.0,97936.0,0.0001714]
[1735199148335,0.006,97937.0,97936.0,0.0001714]
[1735199148529,0.004,97937.0,97936.0,0.0001714]
[1735199148734,0.09682823,97940.0,97937.0,0.32674]
[1735199149372,0.19682823,97938.0,97937.0,0.16337]
[1735199150668,0.19682823,97938.0,97937.0,0.16737]
[1735199150844,0.19682823,97938.0,97937.0,0.16337]
[1735199151209,0.19682823,97938.0,97937.0,0.16537]
[1735199151683,0.19682823,97938.0,97937.0,0.16637]
[1735199152031,0.19682823,97938.0,97937.0,0.16337]
[1735199152304,0.19682823,97938.0,97937.0,0.16537]
[1735199152724,0.19682823,97938.0,97937.0,0.16637]
[1735199152932,0.19682823,97938.0,97937.0,0.003]
[1735199153072,0.19810459,97938.0,97937.0,0.002]
[1735199153659,0.19810459,97938.0,97936.0,0.0001714]
[1735199153660,0.53659823,97937.0,97936.0,0.0001714]
[1735199153951,0.79058455,97937.0,97936.0,0.0001714]
[1735199154974,0.79058455,97937.0,97936.0,0.0021714]
[1735199155213,0.79058455,97937.0,97936.0,0.0001714]
[1735199155628,1.31063993,97937.0,97936.0,0.0021714]
[1735199155836,1.31163993,97937.0,97936.0,0.0021714]
[1735199156809,1.12861515,97937.0,97936.0,0.0001714]
[1735199157184,1.13061515,97937.0,97936.0,0.0001714]
[1735199157616,1.35939613,97937.0,97936.0,0.0001714]
[1735199160911,1.19602613,97937.0,97936.0,0.0001714]
[1735199163141,0.96724515,97937.0,97936.0,0.0001714]
[1735199164002,0.96624515,97937.0,97936.0,0.0001714]
[1735199164392,0.96524515,97937.0,97936.0,0.0001714]
[1735199164591,0.96924515,97937.0,97936.0,0.0001714]
[1735199164932,0.96824515,97937.0,97936.0,0.0001714]
[1735199165125,1.17891515,97937.0,97936.0,0.0001714]
[1735199166629,1.01554515,97937.0,97936.0,0.0001714]
[1735199168962,0.91554515,97937.0,97936.0,0.0001714]
[1735199174251,0.91554515,97937.0,97930.0,0.0001368]
[1735199174575,0.10526291,97936.0,97930.0,0.0001368]
[1735199175781,0.1,97931.0,97930.0,0.0001368]
[1735199175985,0.19810481,97931.0,97930.0,0.0001368]
[1735199176771,0.53513541,97931.0,97930.0,0.0001368]
[1735199176943,0.53485883,97931.0,97930.0,0.0001368]
[1735199177152,0.53485883,97931.0,97930.0,0.00029292]
[1735199177306,0.53685883,97931.0,97930.0,0.00029292]
[1735199177515,0.19982823,97931.0,97930.0,0.00029292]
[1735199177815,0.20110482,97931.0,97930.0,0.00029292]
[1735199178259,0.28130482,97931.0,97930.0,0.00029292]
[1735199178562,0.28002823,97931.0,97930.0,0.00029292]
[1735199179861,0.84573173,97931.0,97930.0,0.00029292]
[1735199180981,0.28002823,97931.0,97930.0,0.00029292]
[1735199181711,0.18002823,97931.0,97930.0,0.00029292]
[1735199181923,0.28002823,97931.0,97930.0,0.00029292]
[1735199188191,0.41707621,97931.0,97930.0,0.00029292]
[1735199191400,0.33687621,97931.0,97930.0,0.00029292]
[1735199192767,0.19982823,97931.0,97930.0,0.00029292]
[1735199194178,0.20110472,97931.0,97930.0,0.00029292]
[1735199195028,0.29246056,97931.0,97930.0,0.00029292]
[1735199195361,0.29118407,97931.0,97930.0,0.00029292]
[1735199195809,0.19982823,97931.0,97930.0,0.00029292]
[1735199196281,0.20110472,97931.0,97930.0,0.00029292]
[1735199196501,0.25100472,97931.0,97930.0,0.00029292]
[1735199196713,0.24972823,97931.0,97930.0,0.00029292]
[1735199197118,0.58738739,97931.0,97930.0,0.00029292]
[1735199198590,0.58747309,97931.0,97930.0,0.00029292]
[1735199199263,0.77365941,97931.0,97930.0,0.00029292]
[1735199199590,0.67683118,97931.0,97930.0,0.00029292]
[1735199199798,0.77365941,97931.0,97930.0,0.00029292]
[1735199200688,1.04819659,97931.0,97930.0,0.00029292]
[1735199200859,0.81211027,97931.0,97930.0,0.00029292]
[1735199201636,0.53757309,97931.0,97930.0,0.00029292]
[1735199202389,0.76645012,97931.0,97930.0,0.00029292]
[1735199203784,0.53757309,97931.0,97930.0,0.00029292]
[1735199204496,0.72066755,97931.0,97930.0,0.00029292]
[1735199206880,0.62066755,97931.0,97930.0,0.00029292]
[1735199207103,0.72066755,97931.0,97930.0,0.00029292]
[1735199208117,0.62383932,97931.0,97930.0,0.00029292]
[1735199208319,0.62383932,97931.0,97930.0,0.08309292]
[1735199208873,0.52383932,97931.0,97930.0,0.08309292]
[1735199209273,0.52383932,97931.0,97930.0,0.09323435]
[1735199209493,0.52383932,97931.0,97930.0,0.24122067]
[1735199209921,0.0030857,97931.0,97930.0,0.24122067]
[1735199210504,0.0020857,97931.0,97930.0,0.24122067]
[1735199210723,8.57e-05,97931.0,97930.0,0.24122067]
[1735199210925,8.57e-05,97931.0,97930.0,0.39322067]
[1735199211267,8.57e-05,97931.0,97930.0,0.39222067]
[1735199212105,8.57e-05,97931.0,97930.0,0.39122067]
[1735199212508,8.57e-05,97931.0,97930.0,0.41622067]
[1735199212749,7e-07,97931.0,97930.0,0.41422067]
[1735199213173,0.0010007,97931.0,97930.0,0.42322067]
[1735199213379,0.0010007,97931.0,97930.0,0.41522067]
[1735199213380,7e-07,97931.0,97930.0,0.41522067]
[1735199213799,0.0010007,97931.0,97930.0,0.42422067]
[1735199214030,0.0010007,97931.0,97930.0,0.41522067]
[1735199214249,0.0010007,97931.0,97930.0,0.41422067]
[1735199214594,0.0020007,97931.0,97930.0,0.42022067]
[1735199215816,0.0020007,97931.0,97930.0,0.42322067]
[1735199216017,7e-07,97931.0,97930.0,0.41922067]
[1735199216441,0.0010007,97931.0,97930.0,0.42822067]
[1735199216648,0.0010007,97931.0,97930.0,0.41922067]
[1735199216968,4e-07,97936.0,97933.0,0.326754]
[1735199217185,4e-07,97936.0,97935.0,0.1058]
[1735199217423,4e-07,97936.0,97935.0,0.20978632]
[1735199218506,4e-07,97936.0,97935.0,0.37315932]
[1735199219082,0.0010004,97936.0,97935.0,0.38115932]
[1735199219754,4e-07,97936.0,97935.0,0.37715932]
[1735199220273,0.0010004,97936.0,97935.0,0.38515932]
[1735199220475,0.0010004,97936.0,97935.0,0.27935932]
[1735199221126,4e-07,97936.0,97935.0,0.53265932]
[1735199221337,4e-07,97936.0,97935.0,0.52465932]
[1735199221490,0.1,97951.0,97950.0,0.163348]
[1735199222247,0.1,97951.0,97950.0,0.326696]
[1735199222585,0.1,97951.0,97950.0,0.327696]
[1735199222786,0.1,97951.0,97950.0,0.329696]
[1735199223006,0.1,97951.0,97950.0,0.327696]
[1735199223710,0.1,97951.0,97950.0,0.326696]
[1735199224057,0.1,97953.0,97950.0,0.326696]
[1735199224263,8.57e-05,97954.0,97950.0,0.326696]
[1735199224457,8.57e-05,97954.0,97950.0,0.328696]
[1735199224683,8.57e-05,97954.0,97950.0,0.326696]
[1735199225217,8.57e-05,97954.0,97950.0,0.33864364]
[1735199225458,8.57e-05,97954.0,97950.0,0.33764364]
[1735199225688,8.57e-05,97954.0,97952.0,0.163345]
[1735199225946,8.57e-05,97954.0,97953.0,0.10398632]
[1735199226559,8.57e-05,97954.0,97952.0,0.163345]
[1735199227302,8.57e-05,97954.0,97953.0,0.10398632]
[1735199229888,0.09967375,97957.0,97954.0,0.326682]
[1735199230024,0.09967375,97957.0,97954.0,0.43066832]
[1735199230436,0.09967375,97957.0,97955.0,0.16334]
[1735199231312,0.10067375,97957.0,97955.0,0.16334]
[1735199231877,0.09967375,97957.0,97955.0,0.16334]
[1735199232105,0.10167375,97957.0,97955.0,0.16334]
[1735199233485,0.10175945,97957.0,97955.0,0.16334]
[1735199240183,0.22362823,97956.0,97955.0,0.16334]
[1735199241768,0.22462823,97956.0,97955.0,0.16334]
[1735199242144,0.22562823,97956.0,97955.0,0.16334]
[1735199245886,0.22562823,97956.0,97955.0,0.1635114]
[1735199247098,0.32530198,97956.0,97955.0,0.1635114]
[1735199257553,0.41683477,97956.0,97955.0,0.1635114]
[1735199258394,0.52082109,97956.0,97955.0,0.1635114]
[1735199259013,0.56658749,97956.0,97955.0,0.1635114]
[1735199261885,0.4292883,97956.0,97955.0,0.1635114]
[1735199265926,0.52084172,97956.0,97955.0,0.1635114]
[1735199270664,0.09355342,97956.0,97955.0,0.1635114]
[1735199270868,0.002,97956.0,97955.0,0.1635114]
[1735199271906,0.001,97956.0,97955.0,0.1635114]
[1735199272352,0.001,97956.0,97955.0,0.26749772]
[1735199272874,0.001,97956.0,97955.0,0.26849772]
[1735199273068,0.09975945,97957.0,97955.0,0.26849772]
[1735199273313,0.09975945,97957.0,97955.0,0.27864611]
[1735199273754,0.09975945,97957.0,97955.0,0.27764611]
[1735199273975,0.001,97956.0,97955.0,0.28664611]
[1735199274178,8.57e-05,97961.0,97957.0,0.326672]
[1735199274179,4e-07,97961.0,97957.0,0.326672]
[1735199274386,8.57e-05,97964.0,97959.0,0.0794]
[1735199274387,1e-07,97964.0,97959.0,0.0794]
[1735199274494,1e-07,97964.0,97963.0,0.163326]
[1735199274702,1e-07,97964.0,97963.0,0.41731232]
[1735199275925,2e-07,97971.0,97969.0,0.163316]
[1735199276130,2e-07,97971.0,97970.0,0.10398632]
[1735199277899,2e-07,97971.0,97970.0,0.11298632]
[1735199278298,2e-07,97971.0,97970.0,0.11698632]
[1735199278673,2e-07,97971.0,97970.0,0.13717114]
[1735199278868,6e-07,97973.0,97971.0,0.163313]
[1735199279074,0.0009838,97990.0,97989.0,0.163283]
[1735199279483,5.202e-05,97990.0,97989.0,0.163283]
[1735199280269,0.00105202,97990.0,97989.0,0.172283]
[1735199280462,0.00105202,97990.0,97989.0,0.35536932]
[1735199280683,0.0001714,98004.0,98003.0,0.16326]
[1735199282617,0.0001714,98004.0,98003.0,0.17459403]
[1735199283448,0.0001714,98004.0,98003.0,0.17859403]
[1735199283991,0.0001714,98004.0,98003.0,0.16826]
[1735199284458,0.0001314,98004.0,98003.0,0.16426]
[1735199285024,0.0001314,98004.0,98003.0,0.16326]
[1735199285450,0.0001314,98004.0,98003.0,0.16426]
[1735199286015,0.0001314,98004.0,98003.0,0.16726]
[1735199286197,0.0001314,98004.0,98003.0,0.16426]
[1735199286635,0.0001314,98004.0,98003.0,0.16826]
[1735199287318,0.0001314,98004.0,98003.0,0.16426]
[1735199287538,0.0001314,98004.0,98003.0,0.16726]
[1735199287880,0.0001314,98004.0,98003.0,0.16326]
[1735199288287,0.0001314,98004.0,98003.0,0.16426]
[1735199288839,0.0001314,98004.0,98003.0,0.16326]
[1735199289243,0.0001314,98004.0,98003.0,0.16826]
[1735199289673,0.0001314,98004.0,98003.0,0.16726]
[1735199290094,0.0001314,98004.0,98003.0,0.16326]
[1735199290298,0.0001314,98004.0,98003.0,0.16726]
[1735199291211,0.0001314,98004.0,98003.0,0.16826]
[1735199291524,0.0001314,98004.0,98003.0,0.16726]
[1735199291723,0.0001314,98004.0,98003.0,0.16826]
[1735199292371,0.0001314,98004.0,98003.0,0.16726]
[1735199292575,0.0001314,98004.0,98003.0,0.16626]
[1735199293032,0.0001314,98004.0,98003.0,0.17026]
[1735199293144,0.0001314,98004.0,98003.0,0.16626]
[1735199293350,0.0001314,98004.0,98003.0,0.27024632]
[1735199294052,0.0001314,98004.0,98003.0,0.42324632]
[1735199294637,0.0001314,98004.0,98003.0,0.42624632]
[1735199295047,0.0001314,98004.0,98003.0,0.42324632]
[1735199295383,0.0001314,98004.0,98003.0,0.42024632]
[1735199295583,0.0001314,98004.0,98003.0,0.42624632]
[1735199295784,0.0001314,98004.0,98003.0,0.42324632]
[1735199295996,0.0001314,98004.0,98003.0,0.41724632]
[1735199296176,0.0001314,98004.0,98003.0,0.42324632]
[1735199296994,0.0001314,98004.0,98003.0,0.42624632]
[1735199298454,0.0001314,98004.0,98003.0,0.27624632]
[1735199300551,4e-07,98004.0,98003.0,0.52984632]
[1735199301680,5e-07,98015.0,98010.0,0.023]
[1735199301885,5e-07,98015.0,98012.0,0.207245]
[1735199302020,5e-07,98015.0,98014.0,0.163241]
[1735199302210,5e-07,98015.0,98014.0,0.26722732]
[1735199302427,0.0009913,98033.0,98025.0,0.163223]
[1735199302631,0.00020407,98026.0,98025.0,0.26720932]
[1735199303263,0.00020407,98026.0,98025.0,0.28737212]
[1735199303941,0.00020407,98026.0,98025.0,0.29137212]
[1735199304716,7e-08,98026.0,98025.0,0.29137212]
[1735199304924,7e-08,98026.0,98025.0,0.29237212]
[1735199305442,8.577e-05,98026.0,98025.0,0.28737212]
[1735199305735,8.577e-05,98026.0,98025.0,0.29237212]
[1735199305915,8.577e-05,98026.0,98025.0,0.29860763]
[1735199306319,8.577e-05,98026.0,98025.0,0.30760763]
[1735199306882,8.577e-05,98026.0,98025.0,0.30660763]
[1735199307326,8.577e-05,98026.0,98025.0,0.31060763]
[1735199311209,1.7e-07,98034.0,98033.0,0.31321]
[1735199311412,0.00052031,98034.0,98033.0,0.46119632]
[1735199311644,3.1e-07,98034.0,98033.0,0.48736809]
[1735199312542,3.1e-07,98034.0,98033.0,0.49336809]
[1735199312740,3.1e-07,98034.0,98033.0,0.56826809]
[1735199312924,3.1e-07,98034.0,98033.0,0.57726809]
[1735199313228,3.1e-07,98034.0,98033.0,0.56826809]
[1735199313632,3.1e-07,98034.0,98033.0,0.57826809]
[1735199313861,0.08035346,98074.0,98049.0,0.00317177]
[1735199314074,0.00015598,98074.0,98073.0,0.163143]
[1735199314486,0.0982587,98074.0,98073.0,0.163143]
[1735199314690,0.25901216,98074.0,98073.0,0.163143]
[1735199314893,0.25773767,98074.0,98073.0,0.163143]
[1735199315723,0.25773767,98074.0,98073.0,0.167143]
[1735199315925,0.25773767,98074.0,98073.0,0.163143]
[1735199317145,0.25982327,98074.0,98073.0,0.163143]
[1735199317365,0.16299504,98074.0,98073.0,0.163143]
[1735199317543,0.16099504,98074.0,98073.0,0.163143]
[1735199317943,0.16299504,98074.0,98073.0,0.163143]
[1735199318856,0.16299504,98074.0,98073.0,0.169143]
[1735199319249,0.16299504,98074.0,98073.0,0.163143]
[1735199319426,0.16099504,98074.0,98073.0,0.167143]
[1735199319628,0.16099504,98074.0,98073.0,0.168143]
[1735199320289,0.16099504,98074.0,98073.0,0.167143]
[1735199322617,0.08064158,98074.0,98073.0,0.167143]
[1735199323023,0.16099504,98074.0,98073.0,0.167143]
[1735199324287,0.25782327,98074.0,98073.0,0.167143]
[1735199324974,0.08064158,98074.0,98073.0,0.167143]
[1735199325179,0.16099504,98074.0,98073.0,0.27112932]
[1735199325395,0.16099504,98074.0,98073.0,0.26712932]
[1735199325611,0.08064158,98074.0,98073.0,0.26712932]
[1735199325785,0.08064158,98074.0,98073.0,0.27012932]
[1735199326013,0.08064158,98074.0,98073.0,0.26712932]
[1735199326301,0.08064158,98074.0,98073.0,0.27312932]
[1735199326506,0.00024158,98074.0,98073.0,0.26812932]
[1735199326715,0.00024158,98074.0,98073.0,0.27412932]
[1735199327050,0.00024158,98074.0,98073.0,0.27312932]
[1735199327256,0.00024158,98074.0,98073.0,0.27412932]
[1735199328000,0.00024158,98074.0,98073.0,0.26812932]
[1735199328202,0.00024158,98074.0,98073.0,0.27412932]
[1735199328573,0.00024158,98074.0,98073.0,0.29112932]
[1735199328935,0.00024158,98074.0,98073.0,0.29612932]
[1735199329147,0.00024158,98074.0,98073.0,0.27312932]
[1735199329321,0.00024158,98074.0,98073.0,0.27412932]
[1735199329705,0.00024158,98074.0,98073.0,0.27312932]
[1735199330110,0.00024158,98074.0,98073.0,0.27412932]
[1735199341060,5.8e-07,98074.0,98073.0,0.53060109]
[1735199341456,5.8e-07,98074.0,98073.0,0.52960109]
[1735199341657,5.8e-07,98074.0,98073.0,0.52360109]
[1735199341789,5.8e-07,98074.0,98073.0,0.52460109]
[1735199342050,5.8e-07,98074.0,98073.0,0.53060109]
[1735199342441,5.8e-07,98074.0,98073.0,0.52960109]
[1735199342842,5.8e-07,98074.0,98073.0,0.52360109]
[1735199343370,5.8e-07,98074.0,98073.0,0.52560109]
[1735199343574,0.07784068,98098.0,98081.0,0.00317177]
[1735199343767,0.07784068,98098.0,98088.0,0.1201079]
[1735199343934,0.07784068,98098.0,98089.0,0.10398632]
[1735199344133,0.07784068,98098.0,98097.0,0.163103]
[1735199344392,0.0769,98098.0,98097.0,0.26708932]
[1735199344791,0.0475,98101.0,98097.0,0.10398632]
[1735199344939,0.0475,98101.0,98098.0,0.26708832]
[1735199345391,0.0475,98101.0,98098.0,0.43019032]
[1735199346023,0.08035346,98099.0,98098.0,0.26708832]
[1735199346197,0.08035346,98099.0,98098.0,0.26808832]
[1735199346400,0.08035346,98099.0,98098.0,0.26708832]
[1735199346807,0.08035346,98099.0,98098.0,0.163102]
[1735199347025,0.17718169,98086.0,98085.0,0.163122]
[1735199347388,0.00127417,98100.0,98073.0,0.163143]
[1735199347389,0.30158169,98074.0,98073.0,0.163143]
[1735199347587,0.20475346,98074.0,98073.0,0.163143]
[1735199348917,0.20475346,98074.0,98073.0,0.167143]
[1735199349091,0.20475346,98074.0,98073.0,0.163143]
[1735199349451,0.20475346,98074.0,98073.0,0.164143]
[1735199349653,0.20575346,98074.0,98073.0,0.164143]
[1735199349937,0.30258169,98074.0,98073.0,0.001]
[1735199350682,0.30258169,98074.0,98073.0,0.0001712]
[1735199350908,0.30158169,98074.0,98073.0,0.0011712]
[1735199351455,0.30266729,98074.0,98073.0,0.0011712]
[1735199351866,0.30166729,98074.0,98073.0,0.0001712]
[1735199352067,0.30266729,98074.0,98073.0,0.0001712]
[1735199352528,0.30166729,98074.0,98073.0,0.0001712]
[1735199352882,0.30266729,98074.0,98073.0,0.0001712]
[1735199354978,0.39422071,98074.0,98073.0,0.0001712]
[1735199356166,0.30266729,98074.0,98073.0,0.0001712]
[1735199357654,0.39422071,98074.0,98073.0,0.0001712]
[1735199358696,0.39322071,98074.0,98073.0,0.0001712]
[1735199359261,0.49820703,98074.0,98073.0,0.0001712]
[1735199360062,0.50859814,98074.0,98073.0,0.0001712]
[1735199360259,0.93752048,98074.0,98073.0,0.0001712]
[1735199360665,0.93752048,98074.0,98073.0,0.0901712]
[1735199360874,0.93652048,98074.0,98073.0,0.0901712]
[1735199361170,0.94052048,98074.0,98073.0,0.0901712]
[1735199361372,0.25918169,98061.0,98060.0,0.0001712]
[1735199361603,0.36316801,98061.0,98060.0,0.00032718]
[1735199362601,0.36416801,98061.0,98060.0,0.00032718]
[1735199363033,0.17718169,98034.0,98012.0,0.25503754]
[1735199363235,0.17718169,98034.0,98030.0,0.163214]
[1735199364547,0.17918169,98034.0,98030.0,0.163214]
[1735199364827,0.17718169,98034.0,98030.0,0.163214]
[1735199365046,0.18418169,98034.0,98030.0,0.163214]
[1735199373105,0.10382823,98034.0,98030.0,0.163214]
[1735199373424,0.18418169,98034.0,98030.0,0.163214]
[1735199373755,0.10382823,98034.0,98030.0,0.163214]
[1735199373907,0.18418169,98034.0,98030.0,0.163214]
[1735199374888,0.10382823,98034.0,98030.0,0.163214]
[1735199375094,0.18418169,98034.0,98030.0,0.163214]
[1735199383867,0.10382823,98034.0,98030.0,0.163214]
[1735199384022,0.18418169,98034.0,98030.0,0.163214]
[1735199386369,0.23318169,98034.0,98030.0,0.163214]
[1735199387753,0.23318169,98034.0,98010.0,0.163247]
[1735199387754,0.23318169,98034.0,98027.0,0.163219]
[1735199388199,0.41396801,98034.0,98024.0,0.163225]
[1735199389825,0.42392091,98034.0,98019.0,0.163232]
[1735199390684,0.42392091,98034.0,98024.0,0.163225]
[1735199392147,0.51518308,98034.0,98024.0,0.163225]
[1735199392975,0.56081416,98034.0,98024.0,0.163225]
[1735199394311,0.94354926,98034.0,98024.0,0.163225]
[1735199395081,0.76102492,98034.0,98024.0,0.163225]
[1735199396076,0.76102492,98034.0,98019.0,0.163232]
[1735199396336,1.23990195,98034.0,98019.0,0.163232]
[1735199397428,1.01102492,98034.0,98019.0,0.163232]
[1735199397973,1.00702492,98034.0,98019.0,0.163232]
[1735199398273,1.01102492,98034.0,98033.0,0.0011712]
[1735199398446,1.00802492,98034.0,98033.0,0.0011712]
[1735199399376,1.00402492,98034.0,98033.0,0.0001712]
[1735199399527,1.00402492,98034.0,98033.0,0.0011712]
[1735199399728,1.01202492,98034.0,98033.0,0.0011712]
[1735199399951,1.01202492,98034.0,98033.0,0.0001712]
[1735199400143,1.02002492,98034.0,98033.0,0.0011712]
[1735199400358,0.38872924,98034.0,98033.0,0.0011712]
[1735199400596,0.31730201,98034.0,98033.0,0.0011712]
[1735199400811,0.31730201,98034.0,98033.0,0.10515752]
[1735199401030,0.29630201,98034.0,98033.0,0.11430924]
[1735199401240,0.29630201,98034.0,98033.0,0.11530924]
[1735199401241,0.30830201,98034.0,98033.0,0.11530924]
[1735199401933,0.008,98034.0,98033.0,0.11530924]
[1735199402083,0.008,98034.0,98033.0,0.11630924]
[1735199402475,0.008,98034.0,98033.0,0.11530924]
[1735199402655,0.08035346,98042.0,98033.0,0.11530924]
[1735199402853,0.08035346,98042.0,98034.0,0.10398632]
[1735199403099,0.08035346,98042.0,98041.0,0.163197]
[1735199403307,0.11597869,98042.0,98041.0,0.163197]
[1735199404457,0.11797869,98042.0,98041.0,0.163197]
[1735199405192,0.11897869,98042.0,98041.0,0.163197]
[1735199405699,0.11797869,98042.0,98041.0,0.163197]
[1735199405895,0.11797869,98042.0,98041.0,0.164197]
[1735199406583,0.11597869,98042.0,98041.0,0.164197]
[1735199406966,0.08035346,98042.0,98041.0,0.164197]
[1735199407174,0.08035346,98042.0,98041.0,0.167197]
[1735199407582,0.08035346,98042.0,98041.0,0.55088332]
[1735199407583,0.001,98042.0,98041.0,0.55088332]
[1735199407782,0.001,98042.0,98041.0,0.54688332]
[1735199408000,0.003,98042.0,98041.0,0.54688332]
[1735199408206,0.003,98042.0,98041.0,0.39688332]
[1735199408646,0.002,98042.0,98041.0,0.40728736]
[1735199408933,0.002,98042.0,98041.0,0.40928736]
[1735199409421,0.08133936,98053.0,98052.0,0.163178]
[1735199409672,0.08133936,98053.0,98052.0,0.26716432]
[1735199409914,0.08035346,98053.0,98052.0,0.26716432]
[1735199410634,0.03562523,98066.0,98059.0,0.163167]
[1735199411114,0.03562523,98066.0,98059.0,0.158167]
[1735199411338,4.3e-07,98061.0,98059.0,0.41215332]
[1735199411572,4.3e-07,98061.0,98060.0,0.33418632]
[1735199413532,4.3e-07,98061.0,98060.0,0.33818632]
[1735199413747,4.3e-07,98061.0,98060.0,0.33918632]
[1735199413983,4.3e-07,98061.0,98060.0,0.10898632]
[1735199416470,4.3e-07,98061.0,98060.0,0.0251125]
[1735199416774,4.3e-07,98061.0,98060.0,0.005]
[1735199416982,0.08035389,98061.0,98060.0,0.005]